fUSD/lending_fUSD_20250514
["ID","MTS","AMOUNT","RATE_DAILY","PERIOD"]
[361026844,1747209071597,-400.0,0.00012054,2]
[361026845,1747209071606,-400.0,0.00012054,2]
[361026846,1747209071615,-400.0,0.00012054,2]
[361026847,1747209071625,-765.05,0.00012054,2]
[361026848,1747209071634,-837.82,0.00012054,2]
[361026849,1747209071643,-400.0,0.00012054,2]
[361026850,1747209071653,-400.0,0.00012054,2]
[361026851,1747209071663,-846.38,0.00012054,2]
[361026852,1747209071672,-400.0,0.00012054,2]
[361026853,1747209071681,-713.16,0.00012054,2]
[361026854,1747209071691,-544.35,0.00012054,2]
[361026855,1747209071701,-1073.49,0.00012054,2]
[361026856,1747209071711,-400.0,0.00012054,2]
[361026857,1747209071721,-400.0,0.00012054,2]
[361026858,1747209071731,-452.73,0.00012054,2]
[361026859,1747209071740,-400.0,0.00012054,2]
[361026860,1747209071749,-400.0,0.00012054,2]
[361026861,1747209071759,-610.73,0.00012054,2]
[361026862,1747209071768,-400.0,0.00012054,2]
[361026863,1747209071778,-400.0,0.00012054,2]
[361026864,1747209071788,-1807.34,0.00012054,2]
[361026865,1747209071797,-400.0,0.00012054,2]
[361026866,1747209071806,-1075.48,0.00012054,2]
[361026867,1747209071816,-442.29,0.00012054,2]
[361026868,1747209071826,-400.0,0.00012054,2]
[361026869,1747209071836,-504.1,0.00012054,2]
[361026870,1747209071845,-400.0,0.00012054,2]
[361026871,1747209071855,-561.75,0.00012054,2]
[361026872,1747209071864,-546.56,0.00012054,2]
[361026873,1747209071873,-690.43,0.00012054,2]
[361026874,1747209071883,-400.0,0.00012054,2]
[361026875,1747209071892,-400.0,0.00012054,2]
[361026876,1747209071901,-400.0,0.00012054,2]
[361026877,1747209071911,-400.0,0.00012054,2]
[361026878,1747209071921,-154.58908925,0.00012054,2]
[361026879,1747209071930,-416.24,0.00012054,2]
[361026880,1747209071939,-400.0,0.00012054,2]
[361026881,1747209071949,-402.6,0.00012054,2]
[361026882,1747209071959,-400.0,0.00012054,2]
[361026883,1747209071969,-400.0,0.00012054,2]
[361026884,1747209071978,-400.0,0.00012054,2]
[361026885,1747209071987,-1405.65,0.00012054,2]
[361026886,1747209071996,-400.0,0.00012054,2]
[361026887,1747209072005,-1113.76,0.00012054,2]
[361026888,1747209072014,-400.0,0.00012054,2]
[361026889,1747209072024,-400.0,0.00012054,2]
[361026890,1747209072033,-468.31,0.00012054,2]
[361026891,1747209072042,-1001.39,0.00012054,2]
[361026892,1747209072051,-777.85,0.00012054,2]
[361026893,1747209072060,-665.02,0.00012054,2]
[361026894,1747209072068,-400.0,0.00012054,2]
[361026895,1747209072078,-2209.78,0.00012054,2]
[361026896,1747209072087,-542.27,0.00012054,2]
[361026897,1747209072096,-400.0,0.00012054,2]
[361026898,1747209072106,-400.0,0.00012054,2]
[361026899,1747209072115,-1048.34,0.00012054,2]
[361026900,1747209072124,-400.0,0.00012054,2]
[361026901,1747209072134,-1451.38,0.00012054,2]
[361026902,1747209072143,-619.23,0.00012054,2]
[361026903,1747209072152,-400.0,0.00012054,2]
[361026904,1747209072161,-2336.68,0.00012054,2]
[361026905,1747209072170,-845.06,0.00012054,2]
[361026906,1747209072180,-400.0,0.00012054,2]
[361026907,1747209072189,-1320.89,0.00012054,2]
[361026908,1747209072200,-400.0,0.00012054,2]
[361026909,1747209072211,-666.66,0.00012054,2]
[361026910,1747209072220,-400.0,0.00012054,2]
[361026911,1747209072230,-663.81,0.00012054,2]
[361026912,1747209072238,-400.0,0.00012054,2]
[361026913,1747209072248,-400.0,0.00012054,2]
[361026914,1747209072257,-541.3,0.00012054,2]
[361026915,1747209072266,-400.0,0.00012054,2]
[361026916,1747209072275,-400.0,0.00012054,2]
[361026917,1747209072284,-400.0,0.00012054,2]
[361026918,1747209072293,-400.0,0.00012054,2]
[361026919,1747209072303,-400.0,0.00012054,2]
[361026920,1747209072312,-1134.08,0.00012054,2]
[361026921,1747209072321,-445.33,0.00012054,2]
[361026922,1747209072330,-1257.84,0.00012054,2]
[361026923,1747209072339,-575.36,0.00012054,2]
[361026924,1747209072351,-400.0,0.00012054,2]
[361026925,1747209072361,-1000.0,0.00012054,2]
[361026926,1747209072370,-1007.26,0.00012054,2]
[361026927,1747209072379,-400.0,0.00012054,2]
[361026928,1747209072390,-659.39,0.00012054,2]
[361026929,1747209072401,-1204.75,0.00012054,2]
[361026930,1747209072410,-204.20824551,0.00012054,2]
[361026931,1747209072421,-400.98,0.00012054,2]
[361026932,1747209072430,-906.35,0.00012054,2]
[361026933,1747209072439,-466.88,0.00012054,2]
[361026934,1747209072448,-1524.33,0.00012054,2]
[361026935,1747209072458,-774.55,0.00012054,2]
[361026936,1747209072468,-400.0,0.00012054,2]
[361026937,1747209072478,-873.16,0.00012054,2]
[361026938,1747209072487,-523.37,0.00012054,2]
[361026939,1747209072497,-4342.01,0.00012054,2]
[361026940,1747209072507,-352.56,0.00012054,2]
[361026941,1747209072517,-3290.66,0.00012054,2]
[361026942,1747209072527,-256.86075965,0.00012054,2]
[361026943,1747209072537,-620.73,0.00012054,2]
[361026944,1747209072547,-400.0,0.00012054,2]
[361026945,1747209072556,-1318.63,0.00012054,2]
[361026946,1747209072566,-400.0,0.00012054,2]
[361026947,1747209072577,-400.0,0.00012054,2]
[361026948,1747209072587,-794.74,0.00012054,2]
[361026949,1747209072597,-400.0,0.00012054,2]
[361026950,1747209072607,-400.0,0.00012054,2]
[361026951,1747209072616,-496.52,0.00012054,2]
[361026952,1747209072625,-558.78,0.00012054,2]
[361026953,1747209072635,-400.0,0.00012054,2]
[361026954,1747209072645,-903.19,0.00012054,2]
[361026955,1747209072654,-824.62,0.00012054,2]
[361026956,1747209072665,-400.0,0.00012054,2]
[361026957,1747209072850,-400.0,0.00012054,2]
[361026958,1747209072860,-400.0,0.00012054,2]
[361026959,1747209072870,-1186.62,0.00012054,2]
[361026960,1747209072880,-525.47,0.00012054,2]
[361026961,1747209072890,-400.0,0.00012054,2]
[361026962,1747209072900,-992.09,0.00012054,2]
[361026963,1747209072909,-400.0,0.00012054,2]
[361026964,1747209072919,-507.48,0.00012054,2]
[361026965,1747209072929,-1186.0,0.00012054,2]
[361026966,1747209072938,-400.0,0.00012054,2]
[361026967,1747209072947,-871.03,0.00012054,2]
[361026968,1747209072957,-2394.97,0.00012054,2]
[361026969,1747209072967,-8303.1,0.00012054,2]
[361026970,1747209072977,-635.51,0.00012054,2]
[361026971,1747209072987,-400.0,0.00012054,2]
[361026972,1747209072996,-635.86,0.00012054,2]
[361026973,1747209073006,-483.25,0.00012054,2]
[361026974,1747209073015,-762.97,0.00012054,2]
[361026975,1747209073025,-400.0,0.00012054,2]
[361026976,1747209073034,-190.20575685,0.00012054,2]
[361026977,1747209073044,-400.0,0.00012054,2]
[361026978,1747209073054,-3884.54,0.00012054,2]
[361026979,1747209073064,-400.0,0.00012054,2]
[361026980,1747209073078,-539.78,0.00012054,2]
[361026981,1747209073088,-400.0,0.00012054,2]
[361026982,1747209073098,-566.07,0.00012054,2]
[361026983,1747209073108,-528.43955498,0.00012054,2]
[361026984,1747209073118,-400.0,0.00012054,2]
[361026985,1747209073129,-400.0,0.00012054,2]
[361026986,1747209073139,-9332.17,0.00012054,2]
[361026987,1747209073149,-400.0,0.00012054,2]
[361026988,1747209073159,-255.17045747,0.00012054,2]
[361026989,1747209073169,-400.0,0.00012054,2]
[361026990,1747209073179,-400.0,0.00012054,2]
[361026991,1747209073188,-521.21,0.00012054,2]
[361026992,1747209073198,-1359.75,0.00012054,2]
[361026993,1747209073208,-1804.54,0.00012054,2]
[361026994,1747209073218,-400.0,0.00012054,2]
[361026995,1747209073227,-400.0,0.00012054,2]
[361026996,1747209073237,-3867.76,0.00012054,2]
[361026997,1747209073247,-1228.35,0.00012054,2]
[361026998,1747209073256,-454.4,0.00012054,2]
[361026999,1747209073267,-400.0,0.00012054,2]
[361027000,1747209073277,-470.84,0.00012054,2]
[361027001,1747209073287,-451.23,0.00012054,2]
[361027002,1747209073297,-3381.56,0.00012054,2]
[361027003,1747209073306,-1518.64,0.00012054,2]
[361027004,1747209073316,-3045.01,0.00012054,2]
[361027005,1747209073326,-400.0,0.00012054,2]
[361027006,1747209073336,-400.0,0.00012054,2]
[361027007,1747209073348,-7510.59,0.00012054,2]
[361027008,1747209073359,-983.94,0.00012054,2]
[361027009,1747209073371,-480.02,0.00012054,2]
[361027010,1747209073380,-400.0,0.00012054,2]
[361027011,1747209073391,-616.03,0.00012054,2]
[361027012,1747209073400,-585.46,0.00012054,2]
[361027013,1747209073411,-224.85059574,0.00012054,2]
[361027014,1747209073421,-400.0,0.00012054,2]
[361027015,1747209073430,-1174.5,0.00012054,2]
[361027016,1747209073441,-1727.32,0.00012054,2]
[361027017,1747209073450,-824.11,0.00012054,2]
[361027018,1747209073461,-400.0,0.00012054,2]
[361027019,1747209073472,-400.0,0.00012054,2]
[361027020,1747209073483,-400.0,0.00012054,2]
[361027021,1747209073493,-901.12,0.00012054,2]
[361027022,1747209073502,-400.0,0.00012054,2]
[361027023,1747209073513,-400.0,0.00012054,2]
[361027024,1747209073523,-400.0,0.00012054,2]
[361027025,1747209073534,-465.08,0.00012054,2]
[361027026,1747209073544,-975.74,0.00012054,2]
[361027027,1747209073554,-1658.78,0.00012054,2]
[361027028,1747209073564,-400.0,0.00012054,2]
[361027029,1747209073575,-700.75,0.00012054,2]
[361027030,1747209073585,-400.0,0.00012054,2]
[361027031,1747209073595,-803.12,0.00012054,2]
[361027032,1747209073605,-400.0,0.00012054,2]
[361027033,1747209073615,-2190.3,0.00012054,2]
[361027034,1747209073626,-1386.9,0.00012054,2]
[361027035,1747209073636,-485.56,0.00012054,2]
[361027036,1747209073646,-400.0,0.00012054,2]
[361027037,1747209073656,-400.0,0.00012054,2]
[361027038,1747209073666,-1242.02,0.00012054,2]
[361027039,1747209073676,-790.06,0.00012054,2]
[361027040,1747209073686,-400.0,0.00012054,2]
[361027041,1747209073696,-400.0,0.00012054,2]
[361027042,1747209073707,-400.0,0.00012054,2]
[361027043,1747209073717,-21204.56,0.00012054,2]
[361027044,1747209073727,-1050.16,0.00012054,2]
[361027045,1747209073738,-400.0,0.00012054,2]
[361027046,1747209073748,-1025.65,0.00012054,2]
[361027047,1747209073758,-400.0,0.00012054,2]
[361027048,1747209073769,-400.0,0.00012054,2]
[361027049,1747209073778,-462.47,0.00012054,2]
[361027050,1747209073787,-400.0,0.00012054,2]
[361027051,1747209073797,-489.88,0.00012054,2]
[361027052,1747209073807,-400.0,0.00012054,2]
[361027053,1747209073817,-433.44,0.00012054,2]
[361027054,1747209073827,-400.0,0.00012054,2]
[361027055,1747209073837,-1903.72,0.00012054,2]
[361027056,1747209073846,-903.36,0.00012054,2]
[361027057,1747209073856,-460.59,0.00012054,2]
[361027058,1747209073865,-400.0,0.00012054,2]
[361027059,1747209073874,-400.0,0.00012054,2]
[361027060,1747209073884,-1352.46,0.00012054,2]
[361027061,1747209073894,-2297.07,0.00012054,2]
[361027062,1747209073904,-400.0,0.00012054,2]
[361027063,1747209073914,-400.0,0.00012054,2]
[361027064,1747209073924,-5802.65,0.00012054,2]
[361027065,1747209073934,-1010.68,0.00012054,2]
[361027066,1747209073944,-484.75185668,0.00012054,2]
[361027067,1747209073954,-713.5,0.00012054,2]
[361027068,1747209073963,-1266.9,0.00012054,2]
[361027069,1747209073972,-434.56,0.00012054,2]
[361027070,1747209073980,-1158.53,0.00012054,2]
[361027071,1747209073988,-484.69,0.00012054,2]
[361027072,1747209073997,-1095.0,0.00012054,2]
[361027073,1747209074006,-1932.75,0.00012054,2]
[361027074,1747209074014,-435.72,0.00012054,2]
[361027075,1747209074023,-400.0,0.00012054,2]
[361027076,1747209074032,-173.27972198,0.00012054,2]
[361027077,1747209074040,-400.0,0.00012054,2]
[361027078,1747209074049,-1315.66,0.00012054,2]
[361027079,1747209074058,-457.59,0.00012054,2]
[361027080,1747209074067,-400.0,0.00012054,2]
[361027081,1747209074076,-496.1,0.00012054,2]
[361027082,1747209074085,-814.19,0.00012054,2]
[361027083,1747209074094,-400.0,0.00012054,2]
[361027084,1747209074103,-459.36,0.00012054,2]
[361027085,1747209074112,-5005.62,0.00012054,2]
[361027086,1747209074121,-615.67,0.00012054,2]
[361027087,1747209074130,-4200.08,0.00012054,2]
[361027088,1747209074139,-400.0,0.00012054,2]
[361027089,1747209074148,-402.79,0.00012054,2]
[361027090,1747209074158,-400.0,0.00012054,2]
[361027091,1747209074167,-1129.39,0.00012054,2]
[361027092,1747209074175,-695.95,0.00012054,2]
[361027093,1747209074182,-558.35,0.00012054,2]
[361027094,1747209074189,-900.7,0.00012054,2]
[361027095,1747209074196,-400.0,0.00012054,2]
[361027096,1747209074204,-2565.38,0.00012054,2]
[361027097,1747209074211,-1206.83,0.00012054,2]
[361027098,1747209074218,-704.13,0.00012054,2]
[361027099,1747209074226,-400.0,0.00012054,2]
[361027100,1747209074234,-905.95,0.00012054,2]
[361027101,1747209074242,-400.0,0.00012054,2]
[361027102,1747209074249,-461.69,0.00012054,2]
[361027103,1747209074258,-400.0,0.00012054,2]
[361027104,1747209074265,-1026.15,0.00012054,2]
[361027105,1747209074272,-926.7,0.00012054,2]
[361027106,1747209074278,-720.88,0.00012054,2]
[361027107,1747209074286,-828.79,0.00012054,2]
[361027108,1747209074293,-696.91,0.00012054,2]
[361027109,1747209074302,-2110.67,0.00012054,2]
[361027110,1747209074312,-400.0,0.00012054,2]
[361027111,1747209074322,-400.0,0.00012054,2]
[361027112,1747209074331,-540.58,0.00012054,2]
[361027113,1747209074342,-3080.676498,0.00012054,2]
[361027114,1747209074354,-400.0,0.00012054,2]
[361027115,1747209074363,-1784.16,0.00012054,2]
[361027116,1747209074373,-400.0,0.00012054,2]
[361027117,1747209074381,-1232.7,0.00012054,2]
[361027118,1747209074391,-155.45183089,0.00012054,2]
[361027119,1747209074399,-1246.63,0.00012054,2]
[361027120,1747209074408,-400.0,0.00012054,2]
[361027121,1747209074418,-400.0,0.00012054,2]
[361027122,1747209074428,-400.0,0.00012054,2]
[361027123,1747209074438,-1031.46,0.00012054,2]
[361027124,1747209074447,-415.13,0.00012054,2]
[361027125,1747209074458,-614.08,0.00012054,2]
[361027126,1747209074468,-915.16,0.00012054,2]
[361027127,1747209074477,-400.0,0.00012054,2]
[361027128,1747209074486,-400.0,0.00012054,2]
[361027129,1747209074496,-8117.6,0.00012054,2]
[361027130,1747209074505,-400.0,0.00012054,2]
[361027131,1747209074515,-400.0,0.00012054,2]
[361027132,1747209074524,-1273.28,0.00012054,2]
[361027133,1747209074534,-400.0,0.00012054,2]
[361027134,1747209074544,-400.0,0.00012054,2]
[361027135,1747209074554,-400.0,0.00012054,2]
[361027136,1747209074563,-400.0,0.00012054,2]
[361027137,1747209074573,-2424.58,0.00012054,2]
[361027138,1747209074582,-356.79228322,0.00012054,2]
[361027139,1747209074592,-447.54,0.00012054,2]
[361027140,1747209074603,-400.0,0.00012054,2]
[361027141,1747209074612,-723.09,0.00012054,2]
[361027142,1747209074622,-422.1,0.00012054,2]
[361027143,1747209074631,-400.0,0.00012054,2]
[361027144,1747209074640,-1958.39,0.00012054,2]
[361027145,1747209074649,-400.0,0.00012054,2]
[361027146,1747209074657,-2526.26,0.00012054,2]
[361027147,1747209074666,-803.6,0.00012054,2]
[361027148,1747209074675,-2914.11,0.00012054,2]
[361027149,1747209074685,-599.26,0.00012054,2]
[361027150,1747209074694,-905.05,0.00012054,2]
[361027151,1747209074705,-8091.9,0.00012054,2]
[361027152,1747209074714,-523.93887309,0.00012054,2]
[361027153,1747209074724,-1000.0,0.00012054,2]
[361027154,1747209074733,-1722.0,0.00012054,2]
[361027155,1747209074741,-805.31,0.00012054,2]
[361027156,1747209074747,-400.0,0.00012054,2]
[361027157,1747209074756,-400.0,0.00012054,2]
[361027158,1747209074762,-981.33,0.00012054,2]
[361027159,1747209074771,-400.0,0.00012054,2]
[361027160,1747209074781,-400.0,0.00012054,2]
[361027161,1747209074791,-16964.09,0.00012055,2]
[361027162,1747209074802,-1500.0,0.00012068,2]
[361027163,1747209074812,-1500.0,0.00012068,2]
[361027164,1747209074821,-1000.0,0.0001207,2]
[361027165,1747209074831,-500.0,0.0001207,2]
[361027166,1747209074840,-222.05588322,0.00012095,2]
[361027167,1747209074849,-200.0,0.000121,2]
[361027168,1747209074858,-4023.91337391,0.00012137,2]
[361027169,1747209074867,-8520.23959108,0.00012137,2]
[361027170,1747209074877,-320.74051982,0.00012148,2]
[361027171,1747209074886,-216.0,0.0001221,2]
[361027172,1747209074895,-442.27468606,0.00012228,2]
[361027173,1747209074905,-1000.0,0.00012287,2]
[361027174,1747209074914,-200.0,0.0001231,2]
[361027175,1747209074924,-408.57229255,0.00012327,2]
[361027176,1747209074933,-300.0,0.00012327,2]
[361027177,1747209074943,-300.0,0.00012327,2]
[361027178,1747209074952,-300.0,0.00012327,2]
[361027179,1747209074963,-400.0,0.00012327,2]
[361027180,1747209074973,-400.0,0.00012327,2]
[361027181,1747209074982,-400.0,0.00012327,2]
[361027182,1747209074992,-400.0,0.00012327,2]
[361027183,1747209075003,-528.13,0.00012327,2]
[361027184,1747209075013,-816.27,0.00012327,2]
[361027185,1747209075023,-400.0,0.00012327,2]
[361027186,1747209075032,-400.0,0.00012327,2]
[361027187,1747209075043,-499.52039631,0.00012327,2]
[361027188,1747209075052,-679.38,0.00012327,2]
[361027189,1747209075061,-400.0,0.00012327,2]
[361027190,1747209075071,-400.0,0.00012327,2]
[361027191,1747209075080,-400.0,0.00012327,2]
[361027192,1747209075090,-400.0,0.00012327,2]
[361027193,1747209075100,-350691.74185376,0.00012327,2]
[361027194,1747209075109,-400.0,0.00012328,2]
[361027195,1747209075119,-151.0,0.00012328,2]
[361027196,1747209075128,-151.0,0.00012328,2]
[361027197,1747209075138,-703.18,0.00012328,2]
[361027198,1747209075147,-172.605832,0.00012328,2]
[361027199,1747209075156,-172.605832,0.00012328,2]
[361027200,1747209075166,-349.855303,0.00012328,2]
[361027201,1747209075175,-349.855303,0.00012328,2]
[361027202,1747209075184,-151.0,0.00012328,2]
[361027203,1747209075194,-151.0,0.00012328,2]
[361027204,1747209075371,-400.0,0.00012328,2]
[361027205,1747209075381,-400.0,0.00012328,2]
[361027206,1747209075391,-400.0,0.00012328,2]
[361027207,1747209075400,-166.82696487,0.00012328,2]
[361027208,1747209075409,-596.11,0.00012328,2]
[361027209,1747209075420,-286.93199414,0.00012328,2]
[361027210,1747209075429,-400.0,0.00012328,2]
[361027211,1747209075438,-400.0,0.00012328,2]
[361027212,1747209075447,-400.0,0.00012328,2]
[361027213,1747209075458,-151.0,0.00012328,2]
[361027214,1747209075467,-400.0,0.00012328,2]
[361027215,1747209075476,-400.0,0.00012328,2]
[361027216,1747209075486,-400.0,0.00012328,2]
[361027217,1747209075495,-151.0,0.00012328,2]
[361027218,1747209075504,-737.65,0.00012328,2]
[361027219,1747209075514,-711.57,0.00012328,2]
[361027220,1747209075525,-672.9,0.00012328,2]
[361027221,1747209075535,-400.0,0.00012328,2]
[361027222,1747209075544,-400.0,0.00012328,2]
[361027223,1747209075554,-460.32,0.00012328,2]
[361027224,1747209075564,-400.0,0.00012328,2]
[361027225,1747209075573,-400.0,0.00012328,2]
[361027226,1747209075583,-400.0,0.00012328,2]
[361027227,1747209075593,-400.0,0.00012328,2]
[361027228,1747209075603,-939.06,0.00012328,2]
[361027229,1747209075613,-436.72,0.00012328,2]
[361027230,1747209075622,-400.0,0.00012328,2]
[361027231,1747209075631,-400.0,0.00012328,2]
[361027232,1747209075641,-400.0,0.00012328,2]
[361027233,1747209075650,-1236.03,0.00012328,2]
[361027234,1747209075659,-882.64,0.00012328,2]
[361027235,1747209075668,-400.0,0.00012328,2]
[361027236,1747209075679,-400.0,0.00012328,2]
[361027237,1747209075688,-400.0,0.00012328,2]
[361027238,1747209075698,-400.0,0.00012328,2]
[361027239,1747209075708,-483.18,0.00012328,2]
[361027240,1747209075717,-400.0,0.00012328,2]
[361027241,1747209075726,-167.76905917,0.00012328,2]
[361027242,1747209075736,-400.0,0.00012328,2]
[361027243,1747209075745,-400.0,0.00012328,2]
[361027244,1747209075755,-400.0,0.00012328,2]
[361027245,1747209075764,-400.0,0.00012328,2]
[361027246,1747209075774,-400.0,0.00012328,2]
[361027247,1747209075783,-400.0,0.00012328,2]
[361027248,1747209075792,-400.0,0.00012328,2]
[361027249,1747209075801,-479.52,0.00012328,2]
[361027250,1747209075811,-400.0,0.00012328,2]
[361027251,1747209075819,-634.51,0.00012328,2]
[361027252,1747209075828,-400.0,0.00012328,2]
[361027253,1747209075836,-435.37,0.00012328,2]
[361027254,1747209075844,-596.16,0.00012328,2]
[361027255,1747209075853,-152.63421455,0.00012328,2]
[361027256,1747209075862,-400.0,0.00012328,2]
[361027257,1747209075871,-494.69,0.00012328,2]
[361027258,1747209075880,-400.0,0.00012328,2]
[361027259,1747209075889,-400.0,0.00012328,2]
[361027260,1747209075897,-400.0,0.00012328,2]
[361027261,1747209075905,-400.0,0.00012328,2]
[361027262,1747209075914,-400.0,0.00012328,2]
[361027263,1747209075922,-400.0,0.00012328,2]
[361027264,1747209075931,-599.12,0.00012328,2]
[361027265,1747209075940,-1062.41,0.00012328,2]
[361027266,1747209075949,-400.0,0.00012328,2]
[361027267,1747209075959,-400.0,0.00012328,2]
[361027268,1747209075968,-400.0,0.00012328,2]
[361027269,1747209075977,-1179.96,0.00012328,2]
[361027270,1747209075987,-450.9,0.00012328,2]
[361027271,1747209075996,-884.53,0.00012328,2]
[361027272,1747209076006,-400.0,0.00012328,2]
[361027273,1747209076016,-400.0,0.00012328,2]
[361027274,1747209076026,-400.0,0.00012328,2]
[361027275,1747209076035,-1027.84,0.00012328,2]
[361027276,1747209076045,-1395.43,0.00012328,2]
[361027277,1747209076055,-543.81,0.00012328,2]
[361027278,1747209076064,-688.09,0.00012328,2]
[361027279,1747209076074,-540.49,0.00012328,2]
[361027280,1747209076085,-545.09,0.00012328,2]
[361027281,1747209076094,-1082.93,0.00012328,2]
[361027282,1747209076104,-400.0,0.00012328,2]
[361027283,1747209076113,-476.99,0.00012328,2]
[361027284,1747209076123,-502.4,0.00012328,2]
[361027285,1747209076133,-400.0,0.00012328,2]
[361027286,1747209076143,-518.03,0.00012328,2]
[361027287,1747209076152,-400.0,0.00012328,2]
[361027288,1747209076162,-400.0,0.00012328,2]
[361027289,1747209076171,-400.0,0.00012328,2]
[361027290,1747209076181,-2119.41,0.00012328,2]
[361027291,1747209076191,-1034.94,0.00012328,2]
[361027292,1747209076200,-528.83,0.00012328,2]
[361027293,1747209076209,-521.6,0.00012328,2]
[361027294,1747209076218,-833.6,0.00012328,2]
[361027295,1747209076227,-1089.67,0.00012328,2]
[361027296,1747209076237,-855.81,0.00012328,2]
[361027297,1747209076246,-649.48,0.00012328,2]
[361027298,1747209076256,-662.78,0.00012328,2]
[361027299,1747209076266,-1112.52,0.00012328,2]
[361027300,1747209076275,-450.15,0.00012328,2]
[361027301,1747209076285,-400.0,0.00012328,2]
[361027302,1747209076294,-665.82,0.00012328,2]
[361027303,1747209076303,-670.7,0.00012328,2]
[361027304,1747209076313,-400.0,0.00012328,2]
[361027305,1747209076323,-400.0,0.00012328,2]
[361027306,1747209076332,-400.0,0.00012328,2]
[361027307,1747209076342,-936.51,0.00012328,2]
[361027308,1747209076356,-400.0,0.00012328,2]
[361027309,1747209076366,-400.0,0.00012328,2]
[361027310,1747209076376,-400.0,0.00012328,2]
[361027311,1747209076387,-1073.27,0.00012328,2]
[361027312,1747209076397,-1216.82,0.00012328,2]
[361027313,1747209076406,-400.0,0.00012328,2]
[361027314,1747209076416,-400.0,0.00012328,2]
[361027315,1747209076427,-400.0,0.00012328,2]
[361027316,1747209076436,-400.0,0.00012328,2]
[361027317,1747209076445,-400.0,0.00012328,2]
[361027318,1747209076456,-1630.94,0.00012328,2]
[361027319,1747209076473,-909.1,0.00012328,2]
[361027320,1747209076492,-400.0,0.00012328,2]
[361027321,1747209076511,-565.83,0.00012328,2]
[361027322,1747209076533,-400.0,0.00012328,2]
[361027323,1747209076549,-1329.57,0.00012328,2]
[361027324,1747209076567,-164.28,0.00012328,2]
[361027325,1747209076587,-1847.25,0.00012328,2]
[361027326,1747209076606,-400.0,0.00012328,2]
[361027327,1747209076627,-400.0,0.00012328,2]
[361027328,1747209076644,-422.51,0.00012328,2]
[361027329,1747209076665,-400.0,0.00012328,2]
[361027330,1747209076680,-400.0,0.00012328,2]
[361027331,1747209076697,-876.56,0.00012328,2]
[361027332,1747209076714,-2140.12,0.00012328,2]
[361027333,1747209076730,-571.96,0.00012328,2]
[361027334,1747209076747,-410.56,0.00012328,2]
[361027335,1747209076762,-892.67,0.00012328,2]
[361027336,1747209076777,-533.50098724,0.00012328,2]
[361027337,1747209076792,-400.0,0.00012328,2]
[361027338,1747209076810,-400.0,0.00012328,2]
[361027339,1747209076824,-306.84326096,0.00012328,2]
[361027340,1747209076840,-400.0,0.00012328,2]
[361027341,1747209076857,-400.0,0.00012328,2]
[361027342,1747209076873,-507.63,0.00012328,2]
[361027343,1747209076889,-1074.21,0.00012328,2]